[Event "*** Titled Tuesday Blitz"]
[Site "Chess.com"]
[Date "2019.08.06"]
[Round "7"]
[White "boasovietica"]
[Black "Me_ch_an"]
[Result "1-0"]
[WhiteElo "2459"]
[BlackElo "2317"]
[TimeControl "180+2"]
[EndTime "14:34:32 PDT"]
[Termination "boasovietica won by resignation"]

1. e4 {[%clk 0:03:01.9]} 1... c5 {[%clk 0:02:59.6]} 2. Nf3 {[%clk 0:03:02.8]}
2... Nc6 {[%clk 0:03:00.1]} 3. d4 {[%clk 0:03:01.6]} 3... cxd4 {[%clk 0:03:02]}
4. Nxd4 {[%clk 0:03:02.2]} 4... Qb6 {[%clk 0:03:03.7]} 5. Nb3 {[%clk 0:03:01.4]}
5... Nf6 {[%clk 0:03:04.4]} 6. Nc3 {[%clk 0:03:02.3]} 6... e6 {[%clk 0:03:05]}
7. Bd3 {[%clk 0:03:02]} 7... a6 {[%clk 0:03:05.8]} 8. O-O {[%clk 0:03:02.1]}
8... Be7 {[%clk 0:03:03.4]} 9. Kh1 {[%clk 0:03:01.9]} 9... O-O {[%clk
0:03:03.6]} 10. f4 {[%clk 0:03:01.5]} 10... d6 {[%clk 0:03:04.4]} 11. Qf3 {[%clk
0:03:01.2]} 11... Re8 {[%clk 0:03:03.9]} 12. Bd2 {[%clk 0:02:59.8]} 12... Bf8
{[%clk 0:03:04.5]} 13. Rae1 {[%clk 0:02:57.6]} 13... Qc7 {[%clk 0:03:05.5]} 14.
Qh3 {[%clk 0:02:48.8]} 14... e5 {[%clk 0:02:12.5]} 15. f5 {[%clk 0:02:49.1]}
15... Nb4 {[%clk 0:02:09.9]} 16. g4 {[%clk 0:02:16.1]} 16... b5 {[%clk
0:02:07.3]} 17. g5 {[%clk 0:02:15.8]} 17... Nd7 {[%clk 0:02:08.2]} 18. a3 {[%clk
0:02:08.2]} 18... Nxd3 {[%clk 0:02:03.6]} 19. cxd3 {[%clk 0:02:02.5]} 19... Nc5
{[%clk 0:02:03.8]} 20. Nd5 {[%clk 0:01:54.3]} 20... Qd8 {[%clk 0:02:03.1]} 21.
Na5 {[%clk 0:01:44.9]} 21... Bd7 {[%clk 0:01:57.5]} 22. b4 {[%clk 0:01:43]}
22... Na4 {[%clk 0:01:58.4]} 23. Rg1 {[%clk 0:01:19.8]} 23... Rb8 {[%clk
0:01:56.4]} 24. Nf6+ {[%clk 0:01:00.9]} 24... gxf6 {[%clk 0:01:51.7]} 25. gxf6+
{[%clk 0:01:01.8]} 25... Kh8 {[%clk 0:01:52.6]} 26. Qg4 {[%clk 0:00:57.6]} 26...
Bh6 {[%clk 0:01:46.7]} 27. Bxh6 {[%clk 0:00:55.3]} 27... Qxf6 {[%clk 0:01:48.1]}
28. Bg7+ {[%clk 0:00:55.9]} 1-0

[Event "*** Titled Tuesday Blitz"]
[Site "Chess.com"]
[Date "2019.08.06"]
[Round "7"]
[White "Bladel"]
[Black "Vnebo"]
[Result "1/2-1/2"]
[WhiteElo "2461"]
[BlackElo "2688"]
[TimeControl "180+2"]
[EndTime "14:34:33 PDT"]
[Termination "Game drawn by agreement"]

1. e4 {[%clk 0:03:01.9]} 1... c5 {[%clk 0:03:00.6]} 2. Nf3 {[%clk 0:03:03.3]}
2... Nc6 {[%clk 0:03:01.5]} 3. Bb5 {[%clk 0:03:03.8]} 3... g6 {[%clk 0:03:01.4]}
4. Bxc6 {[%clk 0:03:04.1]} 4... bxc6 {[%clk 0:03:01.3]} 5. O-O {[%clk
0:03:04.7]} 5... Bg7 {[%clk 0:03:02.2]} 6. c3 {[%clk 0:03:05.4]} 6... e5 {[%clk
0:03:02.6]} 7. d4 {[%clk 0:03:05.7]} 7... cxd4 {[%clk 0:03:02.3]} 8. cxd4 {[%clk
0:03:06.6]} 8... exd4 {[%clk 0:03:04.2]} 9. Nxd4 {[%clk 0:03:07.3]} 9... Ne7
{[%clk 0:03:05.5]} 10. Nc3 {[%clk 0:03:06.8]} 10... O-O {[%clk 0:03:04.3]} 11.
Be3 {[%clk 0:03:07.5]} 11... Bb7 {[%clk 0:02:51.3]} 12. Qd2 {[%clk 0:03:08]}
12... d5 {[%clk 0:02:51.3]} 13. exd5 {[%clk 0:03:07.5]} 13... Nxd5 {[%clk
0:02:51.5]} 14. Nxd5 {[%clk 0:03:08]} 14... Qxd5 {[%clk 0:02:51.5]} 15. Rfd1
{[%clk 0:03:08.4]} 15... Rfd8 {[%clk 0:02:38.9]} 16. Nf3 {[%clk 0:02:59.1]}
16... Qxd2 {[%clk 0:02:27.6]} 17. Rxd2 {[%clk 0:02:59.5]} 17... Rxd2 {[%clk
0:02:28.6]} 18. Bxd2 {[%clk 0:03:00.1]} 18... c5 {[%clk 0:02:25.4]} 19. Bc3
{[%clk 0:02:59.4]} 19... Bxc3 {[%clk 0:02:15.6]} 20. bxc3 {[%clk 0:03:01.3]}
20... Bxf3 {[%clk 0:02:16.9]} 21. gxf3 {[%clk 0:03:03.2]} 21... Rd8 {[%clk
0:02:07.6]} 22. Re1 {[%clk 0:03:02.9]} 22... Rd3 {[%clk 0:01:50.2]} 23. Re3
{[%clk 0:03:03.4]} 23... Rxe3 {[%clk 0:01:50.8]} 24. fxe3 {[%clk 0:03:05.3]}
24... f5 {[%clk 0:01:52.3]} 25. Kf2 {[%clk 0:03:03.2]} 25... Kf7 {[%clk
0:01:53.2]} 26. c4 {[%clk 0:03:02.4]} 26... g5 {[%clk 0:01:50]} 27. f4 {[%clk
0:03:00.6]} 27... g4 {[%clk 0:01:42.8]} 28. Kg3 {[%clk 0:03:00.8]} 28... Kg6
{[%clk 0:01:35]} 29. Kh4 {[%clk 0:02:57.4]} 29... h6 {[%clk 0:01:20.1]} 30. Kg3
{[%clk 0:02:56.7]} 30... Kh5 {[%clk 0:01:15.9]} 31. h3 {[%clk 0:02:57.6]} 31...
gxh3 {[%clk 0:01:14.9]} 32. Kxh3 {[%clk 0:02:59.5]} 32... Kg6 {[%clk 0:01:13.3]}
33. Kh4 {[%clk 0:02:59.6]} 33... Kg7 {[%clk 0:01:08.9]} 34. Kh5 {[%clk 0:03:00]}
34... Kh7 {[%clk 0:01:10]} 35. Kh4 {[%clk 0:03:00.8]} 35... Kg6 {[%clk
0:01:11.1]} 36. Kg3 {[%clk 0:03:01.8]} 36... Kg7 {[%clk 0:01:07.1]} 37. Kh3
{[%clk 0:03:01.1]} 37... Kg6 {[%clk 0:01:08.1]} 38. Kh4 {[%clk 0:03:02]} 38...
Kg7 {[%clk 0:01:08.8]} 39. Kh5 {[%clk 0:03:03.2]} 39... Kh7 {[%clk 0:01:09.9]}
40. Kh4 {[%clk 0:03:04.3]} 40... Kg6 {[%clk 0:01:11]} 41. Kg3 {[%clk 0:03:04.9]}
41... Kg7 {[%clk 0:01:11.9]} 42. a3 {[%clk 0:03:06.1]} 42... Kg6 {[%clk
0:01:11.8]} 43. Kh4 {[%clk 0:03:06.2]} 43... Kg7 {[%clk 0:01:12.8]} 44. Kh5
{[%clk 0:03:06.7]} 44... Kh7 {[%clk 0:01:13.6]} 45. a4 {[%clk 0:03:06.7]} 45...
a5 {[%clk 0:01:13.3]} 46. Kh4 {[%clk 0:03:07.1]} 46... Kg6 {[%clk 0:01:13.8]}
47. Kg3 {[%clk 0:03:07.4]} 47... Kg7 {[%clk 0:01:14.8]} 48. Kh3 {[%clk
0:03:08.1]} 48... Kg6 {[%clk 0:01:15.9]} 49. Kh4 {[%clk 0:03:08.3]} 49... Kg7
{[%clk 0:01:17]} 50. Kg3 {[%clk 0:03:09.1]} 50... Kg6 {[%clk 0:01:17.9]} 51. Kh3
{[%clk 0:03:09.9]} 51... Kg7 {[%clk 0:01:19.1]} 1/2-1/2

[Event "*** Titled Tuesday Blitz"]
[Site "Chess.com"]
[Date "2019.08.06"]
[Round "7"]
[White "StephenDedalus83"]
[Black "Faustregel"]
[Result "1-0"]
[WhiteElo "2798"]
[BlackElo "2520"]
[TimeControl "180+2"]
[EndTime "14:34:39 PDT"]
[Termination "StephenDedalus83 won by checkmate"]

1. e4 {[%clk 0:03:01.4]} 1... c5 {[%clk 0:02:58]} 2. Nf3 {[%clk 0:03:00.9]} 2...
d6 {[%clk 0:02:58.9]} 3. d4 {[%clk 0:03:01.1]} 3... cxd4 {[%clk 0:03:00.1]} 4.
Nxd4 {[%clk 0:03:03]} 4... Nf6 {[%clk 0:03:01.7]} 5. Nc3 {[%clk 0:03:04.6]} 5...
Nc6 {[%clk 0:03:03.1]} 6. Bg5 {[%clk 0:03:04.9]} 6... Bd7 {[%clk 0:03:04.2]} 7.
Nb3 {[%clk 0:03:04.6]} 7... Rc8 {[%clk 0:03:04.6]} 8. Bxf6 {[%clk 0:03:02.6]}
8... gxf6 {[%clk 0:03:05.1]} 9. Qh5 {[%clk 0:03:04.1]} 9... e6 {[%clk
0:02:17.5]} 10. Bd3 {[%clk 0:03:02]} 10... Be7 {[%clk 0:01:58.7]} 11. O-O {[%clk
0:03:01.2]} 11... Qb6 {[%clk 0:01:59.6]} 12. Kh1 {[%clk 0:03:00.3]} 12... Nd4
{[%clk 0:01:41.7]} 13. f4 {[%clk 0:02:54.4]} 13... Nxb3 {[%clk 0:01:38.9]} 14.
axb3 {[%clk 0:02:54.4]} 14... a6 {[%clk 0:01:30.8]} 15. f5 {[%clk 0:02:50.9]}
15... Qc5 {[%clk 0:01:21.7]} 16. b4 {[%clk 0:02:35.4]} 16... Qe5 {[%clk
0:01:01.6]} 17. Ra5 {[%clk 0:02:34.6]} 17... d5 {[%clk 0:01:02.6]} 18. exd5
{[%clk 0:02:30.2]} 18... exf5 {[%clk 0:00:44.2]} 19. d6 {[%clk 0:02:10.8]} 19...
Qxd6 {[%clk 0:00:41]} 20. Rd5 {[%clk 0:02:09.9]} 20... Qxb4 {[%clk 0:00:36.4]}
21. Rxd7 {[%clk 0:02:10]} 21... Kxd7 {[%clk 0:00:37.3]} 22. Bxf5+ {[%clk
0:02:10.1]} 22... Kc6 {[%clk 0:00:32.3]} 23. Qf3+ {[%clk 0:02:05.4]} 23... Kd6
{[%clk 0:00:13.7]} 24. Rd1+ {[%clk 0:02:00.1]} 24... Ke5 {[%clk 0:00:13.2]} 25.
Rd5# {[%clk 0:01:59.1]} 1-0

[Event "*** Titled Tuesday Blitz"]
[Site "Chess.com"]
[Date "2019.08.06"]
[Round "7"]
[White "edgarrodrigues"]
[Black "ahachess"]
[Result "1-0"]
[WhiteElo "2406"]
[BlackElo "2284"]
[TimeControl "180+2"]
[EndTime "14:35:38 PDT"]
[Termination "edgarrodrigues won by checkmate"]

1. e4 {[%clk 0:03:01.9]} 1... c5 {[%clk 0:02:58.6]} 2. Nf3 {[%clk 0:03:02.7]}
2... d6 {[%clk 0:02:59.8]} 3. d4 {[%clk 0:03:03.9]} 3... cxd4 {[%clk 0:03:00.9]}
4. Nxd4 {[%clk 0:03:05.8]} 4... Nf6 {[%clk 0:03:02]} 5. Nc3 {[%clk 0:03:06.8]}
5... g6 {[%clk 0:03:03.1]} 6. Be3 {[%clk 0:03:07.3]} 6... Bg7 {[%clk 0:03:04.2]}
7. f3 {[%clk 0:03:08.4]} 7... O-O {[%clk 0:03:05.3]} 8. Qd2 {[%clk 0:03:09.2]}
8... Nc6 {[%clk 0:03:06.4]} 9. Bc4 {[%clk 0:03:10]} 9... Bd7 {[%clk 0:03:07.3]}
10. O-O-O {[%clk 0:03:10]} 10... Rc8 {[%clk 0:03:07.8]} 11. Bb3 {[%clk
0:03:10.4]} 11... Ne5 {[%clk 0:03:07.3]} 12. h4 {[%clk 0:03:10.7]} 12... h5
{[%clk 0:03:07.4]} 13. Bg5 {[%clk 0:03:08.2]} 13... Rc5 {[%clk 0:02:49.9]} 14.
g4 {[%clk 0:03:07]} 14... hxg4 {[%clk 0:02:20.9]} 15. f4 {[%clk 0:03:06.6]}
15... Rxc3 {[%clk 0:01:40.7]} 16. Bxf6 {[%clk 0:02:44.7]} 16... Nd3+ {[%clk
0:00:21.8]} 17. Kb1 {[%clk 0:02:35.4]} 17... Rxb3 {[%clk 0:00:22.1]} 18. Nxb3
{[%clk 0:02:26.7]} 18... Bxf6 {[%clk 0:00:18.4]} 19. Qxd3 {[%clk 0:02:25.1]}
19... Be6 {[%clk 0:00:13.5]} 20. Nd4 {[%clk 0:02:18]} 20... Qb6 {[%clk 0:00:11]}
21. h5 {[%clk 0:02:10.9]} 21... g5 {[%clk 0:00:10.9]} 22. fxg5 {[%clk
0:02:05.9]} 22... Bxg5 {[%clk 0:00:11.5]} 23. h6 {[%clk 0:02:05.3]} 23... Kh8
{[%clk 0:00:11.6]} 24. Rhf1 {[%clk 0:01:51.7]} 24... Rc8 {[%clk 0:00:10.6]} 25.
Nxe6 {[%clk 0:01:51]} 25... fxe6 {[%clk 0:00:11.3]} 26. e5 {[%clk 0:01:46.2]}
26... dxe5 {[%clk 0:00:06.1]} 27. Qg6 {[%clk 0:01:41.8]} 27... Rg8 {[%clk
0:00:06.4]} 28. Rf8 {[%clk 0:01:42.3]} 28... Rxf8 {[%clk 0:00:02.2]} 29. Qg7#
{[%clk 0:01:41.9]} 1-0

[Event "*** Titled Tuesday Blitz"]
[Site "Chess.com"]
[Date "2019.08.06"]
[Round "7"]
[White "Morscas"]
[Black "HanSchut"]
[Result "1-0"]
[WhiteElo "2188"]
[BlackElo "2194"]
[TimeControl "180+2"]
[EndTime "14:35:41 PDT"]
[Termination "Morscas won by checkmate"]

1. c4 {[%clk 0:02:59.8]} 1... Nf6 {[%clk 0:03:00.3]} 2. g3 {[%clk 0:03:00.9]}
2... c5 {[%clk 0:03:01.7]} 3. Bg2 {[%clk 0:03:02.2]} 3... d5 {[%clk 0:03:03.2]}
4. cxd5 {[%clk 0:03:03.5]} 4... Nxd5 {[%clk 0:03:04.9]} 5. Nc3 {[%clk
0:03:05.1]} 5... Nc7 {[%clk 0:03:06.5]} 6. Nf3 {[%clk 0:03:06.1]} 6... Nc6
{[%clk 0:03:07.7]} 7. a3 {[%clk 0:03:06.5]} 7... e5 {[%clk 0:03:08.6]} 8. b4
{[%clk 0:03:08.1]} 8... cxb4 {[%clk 0:03:07.9]} 9. axb4 {[%clk 0:03:10]} 9... b5
{[%clk 0:03:09.3]} 10. Ng1 {[%clk 0:03:03.5]} 10... Bd7 {[%clk 0:03:02.4]} 11.
Nd5 {[%clk 0:02:24.4]} 11... Rb8 {[%clk 0:02:28.6]} 12. Qb3 {[%clk 0:02:17.9]}
12... Bd6 {[%clk 0:01:40.5]} 13. Nxc7+ {[%clk 0:02:15.3]} 13... Qxc7 {[%clk
0:01:36.4]} 14. Nf3 {[%clk 0:02:13.3]} 14... O-O {[%clk 0:01:21.4]} 15. O-O
{[%clk 0:02:09.4]} 15... e4 {[%clk 0:01:14.4]} 16. Ng5 {[%clk 0:02:09.9]} 16...
Nd4 {[%clk 0:01:12.5]} 17. Qd5 {[%clk 0:02:06.7]} 17... Nxe2+ {[%clk 0:01:07.5]}
18. Kh1 {[%clk 0:02:06.4]} 18... Bc6 {[%clk 0:01:05.3]} 19. Qf5 {[%clk
0:02:01.3]} 19... g6 {[%clk 0:01:02.8]} 20. Qh3 {[%clk 0:02:02.1]} 20... f5
{[%clk 0:00:51.5]} 21. Ne6 {[%clk 0:02:01]} 21... Qb7 {[%clk 0:00:39.5]} 22.
Nxf8 {[%clk 0:01:59]} 22... Rxf8 {[%clk 0:00:41.4]} 23. Bb2 {[%clk 0:01:59.5]}
23... Bxb4 {[%clk 0:00:37.1]} 24. Rfe1 {[%clk 0:01:57.1]} 24... Bxd2 {[%clk
0:00:15.4]} 25. Rxe2 {[%clk 0:01:57.3]} 25... Bb4 {[%clk 0:00:17]} 26. Bd4
{[%clk 0:01:54.8]} 26... a5 {[%clk 0:00:17.5]} 27. Rc2 {[%clk 0:01:39]} 27...
Bd5 {[%clk 0:00:17.7]} 28. Rac1 {[%clk 0:01:39.1]} 28... Bc4 {[%clk 0:00:18.5]}
29. Rxc4 {[%clk 0:01:39.3]} 29... bxc4 {[%clk 0:00:19.2]} 30. Bf1 {[%clk
0:01:40.9]} 30... c3 {[%clk 0:00:19.5]} 31. Bc4+ {[%clk 0:01:41.7]} 31... Rf7
{[%clk 0:00:19.6]} 32. Qh6 {[%clk 0:01:41.9]} 32... Bf8 {[%clk 0:00:16.2]} 33.
Qf4 {[%clk 0:01:33.3]} 33... Qb4 {[%clk 0:00:17.1]} 34. Qe5 {[%clk 0:01:32.5]}
34... Qxc4 {[%clk 0:00:17.2]} 35. Qh8# {[%clk 0:01:33.4]} 1-0

[Event "*** Titled Tuesday Blitz"]
[Site "Chess.com"]
[Date "2019.08.06"]
[Round "7"]
[White "MarianPetrov"]
[Black "I-Mesquita"]
[Result "1-0"]
[WhiteElo "2574"]
[BlackElo "2686"]
[TimeControl "180+2"]
[EndTime "14:35:49 PDT"]
[Termination "MarianPetrov won by checkmate"]

1. e4 {[%clk 0:03:01.3]} 1... e5 {[%clk 0:02:59.8]} 2. Nc3 {[%clk 0:03:00.6]}
2... Nf6 {[%clk 0:03:00]} 3. g3 {[%clk 0:03:00.6]} 3... Nc6 {[%clk 0:02:59.8]}
4. Bg2 {[%clk 0:02:45.1]} 4... Bc5 {[%clk 0:02:58.8]} 5. Nge2 {[%clk 0:02:43.9]}
5... d6 {[%clk 0:02:56.9]} 6. O-O {[%clk 0:02:44.1]} 6... a6 {[%clk 0:02:53.7]}
7. h3 {[%clk 0:02:43.9]} 7... h5 {[%clk 0:02:44.3]} 8. d3 {[%clk 0:02:39.2]}
8... h4 {[%clk 0:02:40.1]} 9. g4 {[%clk 0:02:39.9]} 9... Nxg4 {[%clk 0:02:12.7]}
10. hxg4 {[%clk 0:02:41.8]} 10... Bxg4 {[%clk 0:02:06.7]} 11. Kh2 {[%clk
0:02:37.6]} 11... h3 {[%clk 0:01:42.1]} 12. Bh1 {[%clk 0:02:37.4]} 12... Nd4
{[%clk 0:01:31.8]} 13. f3 {[%clk 0:02:35.8]} 13... Be6 {[%clk 0:01:21.4]} 14.
Nxd4 {[%clk 0:02:36]} 14... Bxd4 {[%clk 0:01:15.6]} 15. Qe1 {[%clk 0:02:27.1]}
15... Qf6 {[%clk 0:01:10.6]} 16. Be3 {[%clk 0:02:14.5]} 16... c5 {[%clk
0:00:55.9]} 17. Bxd4 {[%clk 0:02:08.3]} 17... cxd4 {[%clk 0:00:52.9]} 18. Ne2
{[%clk 0:02:09.3]} 18... Rc8 {[%clk 0:00:53.7]} 19. c3 {[%clk 0:02:09.7]} 19...
dxc3 {[%clk 0:00:53.8]} 20. bxc3 {[%clk 0:02:10.6]} 20... d5 {[%clk 0:00:50.9]}
21. f4 {[%clk 0:02:09]} 21... d4 {[%clk 0:00:40]} 22. c4 {[%clk 0:01:52.2]}
22... b5 {[%clk 0:00:39.7]} 23. Qg3 {[%clk 0:01:49.9]} 23... bxc4 {[%clk
0:00:39.6]} 24. fxe5 {[%clk 0:01:49.7]} 24... Qd8 {[%clk 0:00:27.9]} 25. Qxg7
{[%clk 0:01:49.2]} 25... Rf8 {[%clk 0:00:29]} 26. Nf4 {[%clk 0:01:48.6]} 26...
cxd3 {[%clk 0:00:16.8]} 27. Nxe6 {[%clk 0:01:31.5]} 27... Rc2+ {[%clk
0:00:17.9]} 28. Kxh3 {[%clk 0:01:31.9]} 28... Rh2+ {[%clk 0:00:06.1]} 29. Kxh2
{[%clk 0:01:28.1]} 29... Qh4+ {[%clk 0:00:07.5]} 30. Kg1 {[%clk 0:01:26.1]}
30... Rh8 {[%clk 0:00:07.3]} 31. Qxf7# {[%clk 0:01:23.9]} 1-0

[Event "*** Titled Tuesday Blitz"]
[Site "Chess.com"]
[Date "2019.08.06"]
[Round "7"]
[White "hurricane7791"]
[Black "Slovak_fighter2000"]
[Result "1-0"]
[WhiteElo "2719"]
[BlackElo "2464"]
[TimeControl "180+2"]
[EndTime "14:35:54 PDT"]
[Termination "hurricane7791 won by resignation"]

1. d4 {[%clk 0:03:01.7]} 1... Nf6 {[%clk 0:02:51.5]} 2. c4 {[%clk 0:03:00.5]}
2... e6 {[%clk 0:02:51.4]} 3. Nc3 {[%clk 0:03:01.6]} 3... d5 {[%clk 0:02:49.2]}
4. cxd5 {[%clk 0:03:02.4]} 4... Nxd5 {[%clk 0:02:49.8]} 5. e4 {[%clk 0:03:03.4]}
5... Nxc3 {[%clk 0:02:51.2]} 6. bxc3 {[%clk 0:03:05.3]} 6... c5 {[%clk
0:02:53.1]} 7. Rb1 {[%clk 0:03:06.8]} 7... cxd4 {[%clk 0:02:51.7]} 8. cxd4
{[%clk 0:03:08.7]} 8... Nc6 {[%clk 0:02:52.9]} 9. Bb5 {[%clk 0:03:09.7]} 9...
Bd7 {[%clk 0:02:50]} 10. Nf3 {[%clk 0:03:06.5]} 10... Bb4+ {[%clk 0:02:45.5]}
11. Bd2 {[%clk 0:03:07.1]} 11... Bxd2+ {[%clk 0:02:46.4]} 12. Qxd2 {[%clk
0:03:09]} 12... O-O {[%clk 0:02:47.8]} 13. O-O {[%clk 0:03:10.3]} 13... b6
{[%clk 0:02:43.7]} 14. Rfe1 {[%clk 0:03:10.3]} 14... Na5 {[%clk 0:02:42.1]} 15.
Bd3 {[%clk 0:03:10.8]} 15... Rc8 {[%clk 0:02:40.8]} 16. Ne5 {[%clk 0:03:10.9]}
16... Qe7 {[%clk 0:02:39.2]} 17. Re3 {[%clk 0:03:08.1]} 17... Rfd8 {[%clk
0:02:39.3]} 18. Rg3 {[%clk 0:02:48.8]} 18... f6 {[%clk 0:02:35.7]} 19. Nf3
{[%clk 0:02:49]} 19... Be8 {[%clk 0:02:32.8]} 20. Qf4 {[%clk 0:02:45.8]} 20...
e5 {[%clk 0:02:24.6]} 21. Qh4 {[%clk 0:02:42.7]} 21... Bg6 {[%clk 0:02:17.9]}
22. d5 {[%clk 0:02:37.6]} 22... Nb7 {[%clk 0:02:15.5]} 23. Nd2 {[%clk
0:02:37.6]} 23... Nd6 {[%clk 0:02:14.7]} 24. Qg4 {[%clk 0:02:37.7]} 24... Qd7
{[%clk 0:02:05.9]} 25. Qe2 {[%clk 0:02:38]} 25... Rc3 {[%clk 0:01:56.3]} 26. h4
{[%clk 0:02:38]} 26... Rdc8 {[%clk 0:01:57.4]} 27. Kh2 {[%clk 0:02:35.5]} 27...
Qf7 {[%clk 0:01:51.9]} 28. Rh3 {[%clk 0:02:26.3]} 28... h5 {[%clk 0:01:48.8]}
29. Rg3 {[%clk 0:02:25.8]} 29... Kh7 {[%clk 0:01:49.9]} 30. Rb3 {[%clk
0:02:21.7]} 30... Rxb3 {[%clk 0:01:50.4]} 31. axb3 {[%clk 0:02:23.6]} 31... Rc3
{[%clk 0:01:46.7]} 32. Qe1 {[%clk 0:02:19.9]} 32... b5 {[%clk 0:01:36.9]} 33.
Qa1 {[%clk 0:02:17.3]} 33... Qc7 {[%clk 0:01:35.8]} 34. Qd1 {[%clk 0:02:08.7]}
34... a5 {[%clk 0:01:33.9]} 35. Qe2 {[%clk 0:01:57.6]} 35... b4 {[%clk 0:01:34]}
36. f4 {[%clk 0:01:54.5]} 36... exf4 {[%clk 0:01:31.7]} 37. Rxg6 {[%clk
0:01:55.4]} 37... Kxg6 {[%clk 0:01:30.4]} 38. e5+ {[%clk 0:01:56.4]} 38... Kf7
{[%clk 0:01:24.3]} 39. exd6 {[%clk 0:01:52.2]} 39... Qxd6 {[%clk 0:01:26.2]} 40.
Qxh5+ {[%clk 0:01:52.9]} 40... Kf8 {[%clk 0:01:26]} 41. Bg6 {[%clk 0:01:43.5]}
41... f3+ {[%clk 0:01:08.1]} 42. g3 {[%clk 0:01:44.4]} 42... Qe5 {[%clk
0:01:03]} 43. Qh8+ {[%clk 0:01:41.5]} 43... Ke7 {[%clk 0:01:04.1]} 44. Qe8+
{[%clk 0:01:42.2]} 44... Kd6 {[%clk 0:01:06]} 45. Ne4+ {[%clk 0:01:42.6]} 45...
Kxd5 {[%clk 0:01:06.3]} 46. Qd7+ {[%clk 0:01:43.6]} 1-0

[Event "*** Titled Tuesday Blitz"]
[Site "Chess.com"]
[Date "2019.08.06"]
[Round "7"]
[White "tteshan"]
[Black "Poghosyan_Suren"]
[Result "1/2-1/2"]
[WhiteElo "2173"]
[BlackElo "2442"]
[TimeControl "180+2"]
[EndTime "14:35:55 PDT"]
[Termination "Game drawn by agreement"]

1. d4 {[%clk 0:03:01.9]} 1... Nf6 {[%clk 0:02:59.1]} 2. c4 {[%clk 0:03:02.8]}
2... c5 {[%clk 0:02:59.2]} 3. d5 {[%clk 0:03:03.5]} 3... b5 {[%clk 0:02:59.9]}
4. cxb5 {[%clk 0:02:56.5]} 4... a6 {[%clk 0:03:00.4]} 5. Nc3 {[%clk 0:02:56.7]}
5... g6 {[%clk 0:02:59.7]} 6. e4 {[%clk 0:02:56.6]} 6... Bg7 {[%clk 0:02:51.1]}
7. Bd3 {[%clk 0:02:44.4]} 7... O-O {[%clk 0:02:50.2]} 8. Nge2 {[%clk 0:02:33.2]}
8... axb5 {[%clk 0:02:41.6]} 9. Bxb5 {[%clk 0:02:29.7]} 9... Qa5 {[%clk
0:02:15.2]} 10. Bd3 {[%clk 0:02:08]} 10... c4 {[%clk 0:02:07.8]} 11. Bc2 {[%clk
0:02:06.1]} 11... d6 {[%clk 0:02:01.8]} 12. Bd2 {[%clk 0:02:06.4]} 12... Bd7
{[%clk 0:01:55.9]} 13. O-O {[%clk 0:02:06.1]} 13... Qb6 {[%clk 0:01:50.6]} 14.
Qc1 {[%clk 0:02:04.9]} 14... Na6 {[%clk 0:01:47.3]} 15. Be3 {[%clk 0:02:04.5]}
15... Qb7 {[%clk 0:01:45.2]} 16. b3 {[%clk 0:01:57.6]} 16... Rfc8 {[%clk
0:01:36.8]} 17. bxc4 {[%clk 0:01:52.2]} 17... Rxc4 {[%clk 0:01:35.9]} 18. Rb1
{[%clk 0:01:53.3]} 18... Qc7 {[%clk 0:01:34.6]} 19. Qd2 {[%clk 0:01:39.1]} 19...
Nxe4 {[%clk 0:01:24.4]} 20. Bxe4 {[%clk 0:01:36.4]} 20... Bxc3 {[%clk
0:01:22.3]} 21. Nxc3 {[%clk 0:01:34.4]} 21... Rxc3 {[%clk 0:01:21]} 22. Rfc1
{[%clk 0:01:26.1]} 22... Rc8 {[%clk 0:01:16.4]} 23. Rd1 {[%clk 0:01:16.3]} 23...
Ba4 {[%clk 0:01:11.9]} 24. Rdc1 {[%clk 0:01:01.4]} 24... Rxc1+ {[%clk
0:01:05.3]} 25. Rxc1 {[%clk 0:01:03.3]} 25... Qxc1+ {[%clk 0:00:59]} 26. Qxc1
{[%clk 0:01:05.2]} 26... Rxc1+ {[%clk 0:00:57.3]} 27. Bxc1 {[%clk 0:01:07.1]}
27... Nb4 {[%clk 0:00:57.6]} 28. a3 {[%clk 0:01:04.4]} 28... Nc2 {[%clk
0:00:47.3]} 29. Kf1 {[%clk 0:01:04.1]} 1/2-1/2

[Event "*** Titled Tuesday Blitz"]
[Site "Chess.com"]
[Date "2019.08.06"]
[Round "7"]
[White "NemtsevIgor"]
[Black "Ceejay271"]
[Result "0-1"]
[WhiteElo "2302"]
[BlackElo "2261"]
[TimeControl "180+2"]
[EndTime "14:35:59 PDT"]
[Termination "Ceejay271 won by checkmate"]

1. d4 {[%clk 0:03:01.9]} 1... Nf6 {[%clk 0:03:00.3]} 2. Bf4 {[%clk 0:03:02.1]}
2... d5 {[%clk 0:03:00.9]} 3. e3 {[%clk 0:03:02.8]} 3... e6 {[%clk 0:03:02.5]}
4. Nf3 {[%clk 0:03:03.5]} 4... Bd6 {[%clk 0:03:04]} 5. Bg3 {[%clk 0:03:04.6]}
5... O-O {[%clk 0:03:05.3]} 6. Bd3 {[%clk 0:03:05.4]} 6... c5 {[%clk 0:03:06.2]}
7. c3 {[%clk 0:03:06.3]} 7... Qc7 {[%clk 0:03:05.1]} 8. Nbd2 {[%clk 0:03:03.5]}
8... Nbd7 {[%clk 0:03:05.7]} 9. O-O {[%clk 0:02:49.1]} 9... e5 {[%clk
0:03:05.5]} 10. dxe5 {[%clk 0:02:44.7]} 10... Nxe5 {[%clk 0:03:07.4]} 11. Nxe5
{[%clk 0:02:45.5]} 11... Bxe5 {[%clk 0:03:09.3]} 12. f4 {[%clk 0:02:46.3]} 12...
Bd6 {[%clk 0:03:08.5]} 13. Bh4 {[%clk 0:02:44.2]} 13... Be7 {[%clk 0:03:01.5]}
14. Bxf6 {[%clk 0:02:31.8]} 14... Bxf6 {[%clk 0:03:02.1]} 15. e4 {[%clk
0:02:33.7]} 15... dxe4 {[%clk 0:02:54.3]} 16. Nxe4 {[%clk 0:02:34.8]} 16... Be7
{[%clk 0:02:16.9]} 17. f5 {[%clk 0:02:34.7]} 17... c4 {[%clk 0:02:17.5]} 18. Bc2
{[%clk 0:02:27.7]} 18... Rd8 {[%clk 0:02:13]} 19. Qh5 {[%clk 0:02:21.7]} 19...
Qb6+ {[%clk 0:02:06.4]} 20. Kh1 {[%clk 0:02:21.8]} 20... Qh6 {[%clk 0:02:03.2]}
21. Qxh6 {[%clk 0:02:16.3]} 21... gxh6 {[%clk 0:02:03.7]} 22. f6 {[%clk
0:02:17.6]} 22... Bf8 {[%clk 0:02:03.4]} 23. Rf3 {[%clk 0:02:08.9]} 23... Be6
{[%clk 0:01:58.4]} 24. Rg3+ {[%clk 0:02:08.1]} 24... Kh8 {[%clk 0:01:58.7]} 25.
Re1 {[%clk 0:01:59.1]} 25... Rd5 {[%clk 0:01:54.9]} 26. Rf3 {[%clk 0:01:34.2]}
26... Rad8 {[%clk 0:01:53.2]} 27. h3 {[%clk 0:01:32.5]} 27... Re5 {[%clk
0:01:48.4]} 28. Ref1 {[%clk 0:01:24.2]} 28... Bd5 {[%clk 0:01:46.2]} 29. Rf4
{[%clk 0:01:25.4]} 29... Rde8 {[%clk 0:01:45.6]} 30. Ng3 {[%clk 0:01:24.1]}
30... Rg5 {[%clk 0:01:40.4]} 31. Kh2 {[%clk 0:01:22.8]} 31... Bd6 {[%clk
0:01:39.8]} 32. Rg4 {[%clk 0:01:23.2]} 32... Rxg4 {[%clk 0:01:35.4]} 33. hxg4
{[%clk 0:01:24.4]} 33... Re2 {[%clk 0:01:35.6]} 34. Rd1 {[%clk 0:01:10.2]} 34...
Rxg2+ {[%clk 0:01:14.3]} 35. Kh3 {[%clk 0:01:11.5]} 35... Rxg3+ {[%clk
0:01:15.3]} 36. Kh4 {[%clk 0:01:12.8]} 36... Rg2 {[%clk 0:01:12.4]} 37. g5
{[%clk 0:00:52.1]} 37... h5 {[%clk 0:00:59.8]} 38. Kxh5 {[%clk 0:00:50.2]} 38...
Bf3+ {[%clk 0:00:59.6]} 39. Kh4 {[%clk 0:00:49.1]} 39... Rh2# {[%clk 0:00:58.8]}
0-1